fUST/lending_fUST_20250628
["ID","MTS","AMOUNT","RATE_DAILY","PERIOD"]
[368330432,1751123448417,-1107.72,0.00022739,2]
[368330433,1751123448426,-460.0,0.00022739,2]
[368330434,1751123448436,-965.51,0.00022739,2]
[368330435,1751123448445,-460.0,0.00022739,2]
[368330436,1751123448455,-460.0,0.00022739,2]
[368330437,1751123448464,-1347.97,0.00022739,2]
[368330438,1751123448473,-460.0,0.00022739,2]
[368330439,1751123448482,-1935.64,0.00022739,2]
[368330440,1751123448491,-460.0,0.00022739,2]
[368330441,1751123448501,-1395.23,0.00022739,2]
[368330442,1751123448510,-1014.47,0.00022739,2]
[368330443,1751123448520,-482.36,0.00022739,2]
[368330444,1751123448529,-992.52,0.00022739,2]
[368330445,1751123448539,-880.19,0.00022739,2]
[368330446,1751123448548,-460.0,0.00022739,2]
[368330447,1751123448557,-2516.66,0.00022739,2]
[368330448,1751123448567,-460.0,0.00022739,2]
[368330449,1751123448576,-547.4,0.00022739,2]
[368330450,1751123448586,-2434.9,0.00022739,2]
[368330451,1751123448595,-709.47,0.00022739,2]
[368330452,1751123448604,-460.0,0.00022739,2]
[368330453,1751123448614,-479.35,0.00022739,2]
[368330454,1751123448623,-206.0,0.0002274,2]
[368330455,1751123448632,-500.0,0.00022754,2]
[368330456,1751123448641,-154.3521965,0.00022767,2]
[368330457,1751123448651,-153.0,0.00022767,2]
[368330458,1751123448660,-177.5104021,0.00022767,2]
[368330459,1751123448669,-575.2177202,0.00022767,2]
[368330460,1751123448678,-159.266168,0.00022767,2]
[368330461,1751123448687,-153.0,0.00022767,2]
[368330462,1751123448696,-159.266168,0.00022767,2]
[368330463,1751123448705,-575.2177202,0.00022767,2]
[368330464,1751123448714,-177.5104021,0.00022767,2]
[368330465,1751123448723,-159.266168,0.00022767,2]
[368330466,1751123448732,-153.0,0.00022767,2]
[368330467,1751123448741,-171.9749283,0.00022767,2]
[368330468,1751123448750,-575.2177202,0.00022767,2]
[368330469,1751123448759,-159.266168,0.00022767,2]
[368330470,1751123448770,-159.266168,0.00022767,2]
[368330471,1751123448781,-318.532336,0.00022767,2]
[368330472,1751123448792,-500.0,0.00022789,2]
[368330473,1751123448801,-1519.20961787,0.00022799,2]
[368330474,1751123448810,-2000.0,0.000228,2]
[368330475,1751123448822,-1000.0,0.000228,2]
[368330476,1751123448831,-151.0,0.00022819,3]
[368330477,1751123448840,-151.0,0.00022819,3]
[368330478,1751123448850,-151.0,0.00022819,3]
[368330479,1751123448859,-151.0,0.00022819,3]
[368330480,1751123448868,-151.0,0.00022819,3]
[368330481,1751123448877,-151.0,0.00022819,3]
[368330482,1751123448886,-151.0,0.00022819,3]
[368330483,1751123448895,-151.0,0.00022819,3]
[368330484,1751123448905,-151.0,0.00022819,3]
[368330485,1751123448914,-151.0,0.00022819,3]
[368330486,1751123448923,-151.0,0.00022819,3]
[368330487,1751123448931,-151.0,0.00022819,3]
[368330488,1751123448941,-151.0,0.00022819,3]
[368330489,1751123448950,-151.0,0.00022819,3]
[368330490,1751123448959,-151.0,0.00022819,3]
[368330491,1751123448968,-151.0,0.00022819,3]
[368330492,1751123448977,-151.0,0.00022819,3]
[368330493,1751123448987,-151.0,0.00022819,3]
[368330494,1751123448996,-151.0,0.00022819,3]
[368330495,1751123449005,-155.24283127,0.00022819,3]
[368330496,1751123449015,-500.0,0.00022873,2]
[368330497,1751123449024,-500.0,0.00022873,2]
[368330498,1751123449033,-500.0,0.00022873,2]
[368330499,1751123449042,-600.0,0.00022873,2]
[368330500,1751123449050,-500.0,0.00022873,2]
[368330501,1751123449060,-500.0,0.00022873,2]
[368330502,1751123449069,-2319.73503737,0.00022895,2]
[368330503,1751123449078,-151.0,0.00022895,6]
[368330504,1751123449088,-215.0738,0.00022898,2]
[368330505,1751123449097,-315534.96743614,0.00022899,7]
[368330506,1751123449106,-165.295835,0.00022899,7]
[368330507,1751123449115,-151.0,0.00022899,7]
[368330508,1751123449124,-151.0,0.00022899,7]
[368330509,1751123449134,-153.674943,0.00022899,7]
[368330510,1751123449144,-151.0,0.00022899,7]
[368330511,1751123449153,-264.598327,0.00022899,7]
[368330512,1751123449162,-151.0,0.00022899,7]
[368330513,1751123449171,-151.0,0.00022899,7]
[368330514,1751123449180,-151.0,0.00022899,7]
[368330515,1751123449189,-151.0,0.00022899,7]
[368330516,1751123449198,-240.985101,0.00022899,7]
[368330517,1751123449207,-240.985101,0.00022899,7]
[368330518,1751123449216,-151.0,0.00022899,7]
[368330519,1751123449225,-151.0,0.00022899,7]
[368330520,1751123449234,-151.0,0.00022899,7]
[368330521,1751123449243,-151.0,0.00022899,7]
[368330522,1751123449252,-151.0,0.00022899,7]
[368330523,1751123449262,-151.0,0.00022899,7]
[368330524,1751123449271,-151.0,0.00022899,7]
[368330525,1751123449280,-151.0,0.00022899,7]
[368330526,1751123449289,-31580.51432558,0.000229,7]
[368330527,1751123449389,-3319.21875025,0.000229,7]
[368330528,1751123449735,-460.0,0.00019178,2]
[368330529,1751123449745,-460.0,0.00019452,2]
[368330530,1751123449756,-706.91,0.00020821,2]
[368330531,1751123449765,-706.91,0.00021095,2]
[368330532,1751123449778,-706.91,0.00021369,2]
[368330533,1751123449787,-460.0,0.00021369,2]
[368330534,1751123449795,-706.91,0.00021643,2]
[368330535,1751123449805,-460.0,0.00021643,2]
[368330536,1751123449814,-706.91,0.00021917,2]
[368330537,1751123449823,-460.0,0.00021917,2]
[368330538,1751123449832,-706.91,0.00022191,2]
[368330539,1751123449841,-460.0,0.00022191,2]
[368330540,1751123449850,-3114.69022787,0.00022383,7]
[368330541,1751123449860,-706.91,0.00022465,2]
[368330542,1751123449869,-460.0,0.00022465,2]
[368330543,1751123449878,-3114.69022787,0.0002259,7]
[368330544,1751123449887,-706.91,0.00022739,2]
[368330545,1751123449897,-460.0,0.00022739,2]
[368330546,1751123449906,-3114.69022787,0.00022797,7]
[368330547,1751123449915,-13240.84071363,0.000229,7]
[368330548,1751123450009,-302.10002581,0.00019178,2]
[368330549,1751123450020,-157.89997419,0.00019178,2]
[368330550,1751123450030,-324.88268731,0.00019178,2]
[368330551,1751123669618,2204.05,0.00025249,120]
[368330552,1751123692566,7795.95,0.0001811,2]
[368330553,1751123809686,236.76147,0.00013699,2]
[368330557,1751124444755,300.776919,0.00018011,2]
[368330558,1751124450086,-300.0,0.00018243,2]
[368330559,1751124450115,-300.0,0.00018244,2]
[368330560,1751124450139,-67.25701547,0.00018244,2]
[368330562,1751124513706,5829.34989682,0.00017,2]
[368330563,1751124513731,15844.47455378,0.00017,2]
[368330564,1751124513755,20000.0,0.00017,2]
[368330565,1751124513779,20000.0,0.00017,2]
[368330566,1751124513802,20000.0,0.00017,2]
[368330567,1751124513826,5169.01184118,0.00017,2]
[368330585,1751124585768,5000.0,0.000181,2]
[368330588,1751124602505,5000.0,0.000181,2]
[368330589,1751124617847,4830.98815882,0.000181,2]
[368330590,1751124617872,169.01184118,0.000181,2]
[368330618,1751124632395,-201.69336341,0.00018144,2]
[368330620,1751124632405,-188.54720388,0.00018145,2]
[368330622,1751124632415,-300.0,0.00018244,2]
[368330624,1751124632425,-155.0,0.00018244,2]
[368330626,1751124632435,-300.0,0.00018244,2]
[368330628,1751124632444,-300.0,0.00018244,2]
[368330630,1751124632454,-1200.0,0.00018244,2]
[368330631,1751124632466,-2661.61870508,0.00018245,2]
[368330635,1751124632488,-693.30714233,0.00018245,2]
[368330717,1751124634066,5000.0,0.000181,2]
[368330782,1751124643237,-20179.81587679,0.00018245,2]
[368330783,1751124643257,-700.56768757,0.00018245,2]
[368330788,1751124646341,-664.69058823,0.00018245,2]
[368330789,1751124646351,-7975.30832277,0.00018487,2]
[368330790,1751124656992,-5000.0,0.00018302,2]
[368330792,1751124657002,-272.97186593,0.00018487,2]
[368330793,1751124657012,-247.21190501,0.00018978,2]
[368330794,1751124657023,-822.04094233,0.00019078,2]
[368330795,1751124657034,-160.0,0.00019167,2]
[368330796,1751124657043,-430.43109959,0.00019176,2]
[368330797,1751124657053,-153.5518679,0.00019176,2]
[368330798,1751124657063,-419.09790603,0.00019176,2]
[368330799,1751124657074,-460.0,0.00019178,2]
[368330800,1751124657086,-460.0,0.00019178,2]
[368330801,1751124657097,-460.0,0.00019178,2]
[368330802,1751124657107,-460.0,0.00019178,2]
[368330803,1751124657118,-460.0,0.00019178,2]
[368330804,1751124657128,-401.90887903,0.00019178,2]
[368330805,1751124657139,-332.94815065,0.00019178,2]
[368330806,1751124657151,-460.0,0.00019178,2]
[368330807,1751124657162,-460.0,0.00019178,2]
[368330808,1751124657173,-460.0,0.00019178,2]
[368330809,1751124657183,-460.0,0.00019178,2]
[368330810,1751124657193,-460.0,0.00019178,2]
[368330811,1751124657202,-460.0,0.00019178,2]
[368330812,1751124657213,-500.0,0.00019178,2]
[368330813,1751124657222,-460.0,0.00019178,2]
[368330814,1751124657233,-460.0,0.00019178,2]
[368330815,1751124657244,-460.0,0.00019178,2]
[368330816,1751124657255,-460.0,0.00019178,2]
[368330817,1751124657264,-469.30885599,0.00019178,2]
[368330818,1751124657276,-460.0,0.00019178,2]
[368330819,1751124657286,-460.0,0.00019178,2]
[368330820,1751124657295,-460.0,0.00019178,2]
[368330821,1751124657305,-460.0,0.00019178,2]
[368330822,1751124657315,-460.0,0.00019178,2]
[368330823,1751124657325,-460.0,0.00019178,2]
[368330824,1751124657334,-460.0,0.00019178,2]
[368330825,1751124657343,-412.74608267,0.00019178,2]
[368330826,1751124657353,-460.0,0.00019178,2]
[368330827,1751124657362,-460.0,0.00019178,2]
[368330828,1751124657372,-216.77210225,0.00019178,2]
[368330829,1751124657382,-460.0,0.00019178,2]
[368330830,1751124657391,-460.0,0.00019178,2]
[368330831,1751124657401,-460.0,0.00019178,2]
[368330832,1751124657411,-460.0,0.00019178,2]
[368330833,1751124657421,-568.84709465,0.00019178,2]
[368330834,1751124657431,-460.0,0.00019178,2]
[368330835,1751124657441,-460.0,0.00019178,2]
[368330836,1751124657451,-460.0,0.00019178,2]
[368330837,1751124657461,-460.0,0.00019178,2]
[368330838,1751124657475,-460.0,0.00019178,2]
[368330839,1751124657484,-460.0,0.00019178,2]
[368330840,1751124657494,-460.0,0.00019178,2]
[368330841,1751124657503,-460.0,0.00019178,2]
[368330843,1751124657514,-460.0,0.00019178,2]
[368330845,1751124657524,-460.0,0.00019178,2]
[368330847,1751124657537,-460.0,0.00019178,2]
[368330848,1751124657547,-460.0,0.00019178,2]
[368330849,1751124657557,-460.0,0.00019178,2]
[368330850,1751124657566,-460.0,0.00019178,2]
[368330851,1751124657576,-460.0,0.00019178,2]
[368330852,1751124657587,-460.0,0.00019178,2]
[368330853,1751124657598,-460.0,0.00019178,2]
[368330854,1751124657609,-460.0,0.00019178,2]
[368330855,1751124657619,-460.0,0.00019178,2]
[368330856,1751124657629,-460.0,0.00019178,2]
[368330857,1751124657638,-460.0,0.00019178,2]
[368330858,1751124657649,-460.0,0.00019178,2]
[368330859,1751124657659,-460.0,0.00019178,2]
[368330860,1751124657668,-460.0,0.00019178,2]
[368330861,1751124657678,-460.0,0.00019178,2]
[368330862,1751124657687,-460.0,0.00019178,2]
[368330863,1751124657697,-460.0,0.00019178,2]
[368330864,1751124657707,-460.0,0.00019178,2]
[368330865,1751124657716,-460.0,0.00019178,2]
[368330866,1751124657726,-460.0,0.00019178,2]
[368330867,1751124657735,-460.0,0.00019178,2]
[368330868,1751124657744,-460.0,0.00019178,2]
[368330869,1751124657754,-460.0,0.00019178,2]
[368330870,1751124657764,-460.0,0.00019178,2]
[368330871,1751124657773,-460.0,0.00019178,2]
[368330872,1751124657784,-616.4,0.00019178,2]
[368330873,1751124657794,-460.0,0.00019178,2]
[368330874,1751124657803,-463.84740366,0.00019178,2]
[368330875,1751124657814,-460.0,0.00019178,2]
[368330876,1751124657823,-460.0,0.00019178,2]
[368330877,1751124657833,-650.1,0.00019178,2]
[368330878,1751124657843,-460.0,0.00019178,2]
[368330879,1751124657853,-460.0,0.00019178,2]
[368330880,1751124657863,-460.0,0.00019178,2]
[368330881,1751124657872,-460.0,0.00019178,2]
[368330882,1751124657882,-460.0,0.00019178,2]
[368330883,1751124657892,-460.0,0.00019178,2]
[368330884,1751124657901,-460.0,0.00019178,2]
[368330885,1751124657912,-460.0,0.00019178,2]
[368330886,1751124657922,-460.0,0.00019178,2]
[368330887,1751124657931,-460.0,0.00019178,2]
[368330888,1751124657942,-460.0,0.00019178,2]
[368330889,1751124657952,-460.0,0.00019178,2]
[368330890,1751124657963,-460.0,0.00019178,2]
[368330891,1751124657973,-562.1626285,0.00019178,2]
[368330892,1751124657984,-460.0,0.00019178,2]
[368330893,1751124657996,-460.0,0.00019178,2]
[368330894,1751124658006,-460.0,0.00019178,2]
[368330895,1751124658016,-913.07,0.00019178,2]
[368330896,1751124658025,-460.0,0.00019178,2]
[368330897,1751124658035,-923.62,0.00019178,2]
[368330898,1751124658046,-460.0,0.00019178,2]
[368330899,1751124658056,-356.39224192,0.00019178,2]
[368330900,1751124658066,-578.60596437,0.00019178,2]
[368330901,1751124658075,-240.0,0.00019178,2]
[368330902,1751124658086,-1129.12,0.00019178,2]
[368330903,1751124658096,-460.0,0.00019178,2]
[368330904,1751124658106,-460.0,0.00019178,2]
[368330905,1751124658116,-460.0,0.00019178,2]
[368330906,1751124658126,-460.0,0.00019178,2]
[368330907,1751124658137,-455.88211171,0.00019178,2]
[368330908,1751125059074,5000.0,0.000181,2]
[368330910,1751125071395,237.350646,0.00013699,2]
[368330911,1751125075348,4214.16806388,0.000181,2]
[368330912,1751125257737,5379.46944894,0.00018099,2]
[368330913,1751125257760,4620.53055106,0.00018099,2]
[368330914,1751125311807,15379.46944894,0.00018099,2]
[368330915,1751125311832,9520.53055106,0.00018099,2]
[368330916,1751125329737,5000.0,0.000181,2]
[368330917,1751125518081,294.754176,0.00017942,2]
[368330918,1751125635100,-300.0,0.00018174,2]
[368330919,1751125635122,-351.12400562,0.00018175,2]
[368330922,1751125729580,5184.71527294,0.00017941,2]
[368330923,1751125729603,16362.78516196,0.00017941,2]
[368330927,1751125761051,3637.21483804,0.000181,2]
[368330928,1751125761075,1362.78516196,0.000181,2]
[368330959,1751125832579,-517.9462302,0.00018174,2]
[368331342,1751125839965,-331.0537698,0.00018174,2]
[368331343,1751125839974,-219.0,0.00018175,2]
[368331345,1751125839984,-300.0,0.00018175,2]
[368331347,1751125839993,-300.0,0.00018175,2]
[368331349,1751125840003,-300.0,0.00018175,2]
[368331351,1751125840012,-160.0,0.00018176,2]
[368331353,1751125840021,-3093.58885925,0.00018176,2]
[368331355,1751125840033,-2550.98,0.00018176,2]
[368331570,1751125843463,-672.33325865,0.00018176,2]
[368331572,1751125843472,-423.29696608,0.00018176,2]
[368331578,1751125843608,-962.57600742,0.00018176,2]
[368331579,1751125843618,-180.0180018,0.00018336,2]
[368331580,1751125843629,-114.58831178,0.00018603,2]
[368331581,1751125843640,-113.38321288,0.00018603,2]
[368331582,1751125843650,-150.0,0.000189,2]
[368331583,1751125843660,-2373.76502796,0.00019078,2]
[368331584,1751125843669,-153.00956316,0.000191,2]
[368331585,1751125843678,-800.1,0.00019168,3]
[368331586,1751125843687,-400.05,0.00019168,3]
[368331587,1751125843696,-200.03,0.00019168,3]
[368331588,1751125843705,-600.11,0.00019168,3]
[368331589,1751125843715,-500.53641873,0.00019173,2]
[368331590,1751125843724,-500.13096027,0.00019173,2]
[368331591,1751125843733,-500.0,0.00019173,2]
[368331592,1751125843743,-501.06090563,0.00019173,2]
[368331594,1751125843752,-500.0,0.00019173,2]
[368331596,1751125843762,-500.0,0.00019173,2]
[368331597,1751125843771,-500.0,0.00019173,2]
[368331598,1751125843780,-435.1404629,0.00019173,2]
[368331599,1751125843790,-220.42795755,0.00019173,2]
[368331600,1751125843799,-500.0,0.00019173,2]
[368331601,1751125843809,-501.00561413,0.00019173,2]
[368331602,1751125843818,-500.0,0.00019173,2]
[368331603,1751125843828,-500.0,0.00019173,2]
[368331604,1751125843837,-500.0,0.00019173,2]
[368331605,1751125843847,-500.0,0.00019173,2]
[368331606,1751125843856,-500.0,0.00019173,2]
[368331607,1751125843865,-500.0,0.00019173,2]
[368331608,1751125843875,-500.0,0.00019173,2]
[368331609,1751125843885,-500.0,0.00019173,2]
[368331610,1751125843896,-627.37031972,0.00019173,2]
[368331611,1751125843907,-500.0,0.00019173,2]
[368331612,1751125843916,-500.0,0.00019173,2]
[368331613,1751125843926,-500.0,0.00019173,2]
[368331614,1751125843936,-500.0,0.00019173,2]
[368331615,1751125843946,-500.0,0.00019173,2]
[368331616,1751125843955,-500.0,0.00019173,2]
[368331617,1751125843965,-500.0,0.00019173,2]
[368331618,1751125843974,-500.0,0.00019173,2]
[368331619,1751125843983,-500.0,0.00019173,2]
[368331620,1751125843993,-500.0,0.00019173,2]
[368331621,1751125844002,-500.0,0.00019173,2]
[368331622,1751125844012,-500.0,0.00019173,2]
[368331623,1751125844021,-500.0,0.00019173,2]
[368331624,1751125844030,-500.0,0.00019173,2]
[368331625,1751125844040,-583.34773135,0.00019173,2]
[368331626,1751125844049,-500.0,0.00019173,2]
[368331627,1751125844059,-500.0,0.00019173,2]
[368331628,1751125844068,-500.0,0.00019173,2]
[368331629,1751125844078,-558.36129053,0.00019173,2]
[368331630,1751125844087,-500.0,0.00019173,2]
[368331631,1751125844098,-500.0,0.00019173,2]
[368331632,1751125844108,-500.0,0.00019173,2]
[368331633,1751125844118,-500.0,0.00019173,2]
[368331634,1751125844127,-500.0,0.00019173,2]
[368331635,1751125844138,-500.0,0.00019173,2]
[368331636,1751125844147,-500.0,0.00019173,2]
[368331637,1751125844157,-500.0,0.00019173,2]
[368331638,1751125844166,-500.0,0.00019173,2]
[368331639,1751125844176,-574.29516131,0.00019173,2]
[368331640,1751125844185,-500.0,0.00019173,2]
[368331641,1751125844195,-500.0,0.00019173,2]
[368331642,1751125844204,-500.0,0.00019173,2]
[368331643,1751125844214,-500.0,0.00019173,2]
[368331644,1751125844223,-500.0,0.00019173,2]
[368331645,1751125844232,-500.0,0.00019173,2]
[368331646,1751125844241,-500.0,0.00019173,2]
[368331647,1751125844330,-500.0,0.00019173,2]
[368331648,1751125844340,-500.0,0.00019173,2]
[368331649,1751125844350,-500.0,0.00019173,2]
[368331650,1751125844359,-500.0,0.00019173,2]
[368331651,1751125844368,-500.0,0.00019173,2]
[368331652,1751125844378,-500.0,0.00019173,2]
[368331653,1751125844388,-500.0,0.00019173,2]
[368331654,1751125844396,-500.0,0.00019173,2]
[368331655,1751125844406,-500.0,0.00019173,2]
[368331656,1751125844415,-500.0,0.00019173,2]
[368331657,1751125844424,-500.0,0.00019173,2]
[368331658,1751125844434,-500.0,0.00019173,2]
[368331659,1751125844443,-500.0,0.00019173,2]
[368331660,1751125844453,-342.42003285,0.00019173,2]
[368331661,1751125844464,-500.0,0.00019173,2]
[368331662,1751125844473,-500.0,0.00019173,2]
[368331663,1751125844482,-383.38664818,0.00019173,2]
[368331712,1751125846577,-116.61335182,0.00019173,2]
[368331713,1751125846588,-357.30120077,0.00019177,2]
[368331714,1751125846600,-350.943936,0.00019177,2]
[368331715,1751125846611,-291.75486323,0.00019177,2]
[368331716,1751125846622,-151.0,0.00019177,2]
[368331717,1751125846632,-151.0,0.00019177,2]
[368331718,1751125846641,-151.0,0.00019177,2]
[368331719,1751125846651,-151.0,0.00019177,2]
[368331720,1751125846661,-152.31220632,0.00019177,2]
[368331721,1751125846671,-151.0,0.00019177,2]
[368331722,1751125846680,-460.0,0.00019178,2]
[368331723,1751125846690,-181.1205323,0.00019178,2]
[368331725,1751125846706,-104.5594677,0.00019178,2]
[368331726,1751125846716,-555.55343789,0.00019178,2]
[368331727,1751125846725,-460.0,0.00019178,2]
[368331728,1751125846735,-460.0,0.00019178,2]
[368331729,1751125846744,-460.0,0.00019178,2]
[368331730,1751125846753,-460.5369321,0.00019178,2]
[368331731,1751125846763,-460.0,0.00019178,2]
[368331732,1751125846772,-498.47,0.00019178,2]
[368331733,1751125846782,-460.0,0.00019178,2]
[368331734,1751125846791,-460.0,0.00019178,2]
[368331735,1751125846801,-460.94513439,0.00019178,2]
[368331736,1751125846810,-183.0562827,0.00019178,2]
[368331737,1751125846820,-420.45683382,0.00019178,2]
[368331738,1751125846830,-460.0,0.00019178,2]
[368331739,1751125846839,-460.0,0.00019178,2]
[368331740,1751125846849,-460.0,0.00019178,2]
[368331741,1751125846859,-460.0,0.00019178,2]
[368331742,1751125846868,-460.45,0.00019178,2]
[368331743,1751125846878,-460.0,0.00019178,2]
[368331744,1751125846888,-460.0,0.00019178,2]
[368331745,1751125846901,-460.0,0.00019178,2]
[368331746,1751125846911,-460.0,0.00019178,2]
[368331747,1751125846920,-460.0,0.00019178,2]
[368331748,1751125846931,-460.135213,0.00019178,2]
[368331749,1751125846940,-460.0,0.00019178,2]
[368331750,1751125846950,-460.0,0.00019178,2]
[368331751,1751125846960,-460.0,0.00019178,2]
[368331752,1751125846971,-460.0,0.00019178,2]
[368331753,1751125846982,-460.0,0.00019178,2]
[368331754,1751125846991,-460.0,0.00019178,2]
[368331755,1751125847001,-460.0,0.00019178,2]
[368331756,1751125847010,-460.0,0.00019178,2]
[368331757,1751125847021,-460.0,0.00019178,2]
[368331758,1751125847030,-460.0,0.00019178,2]
[368331759,1751125847040,-460.0,0.00019178,2]
[368331760,1751125847050,-460.0,0.00019178,2]
[368331761,1751125847059,-460.58596355,0.00019178,2]
[368331762,1751125847069,-460.0,0.00019178,2]
[368331763,1751125847079,-460.0,0.00019178,2]
[368331764,1751125847088,-460.0,0.00019178,2]
[368331765,1751125847099,-460.61725283,0.00019178,2]
[368331766,1751125847109,-460.0,0.00019178,2]
[368331767,1751125847118,-460.0,0.00019178,2]
[368331768,1751125847129,-460.0,0.00019178,2]
[368331769,1751125847139,-460.0,0.00019178,2]
[368331770,1751125847148,-460.0,0.00019178,2]
[368331771,1751125847157,-460.0,0.00019178,2]
[368331772,1751125847167,-460.0,0.00019178,2]
[368331773,1751125847176,-460.0,0.00019178,2]
[368331774,1751125847186,-460.0,0.00019178,2]
[368331775,1751125847195,-460.0,0.00019178,2]
[368331776,1751125847204,-460.0,0.00019178,2]
[368331777,1751125847214,-460.0,0.00019178,2]
[368331778,1751125847223,-460.0,0.00019178,2]
[368331779,1751125847232,-460.0,0.00019178,2]
[368331780,1751125847242,-460.0,0.00019178,2]
[368331781,1751125847251,-460.72897933,0.00019178,2]
[368331782,1751125847260,-167.0,0.00019178,2]
[368331783,1751125847269,-460.0,0.00019178,2]
[368331784,1751125847279,-460.0,0.00019178,2]
[368331785,1751125847288,-460.0,0.00019178,2]
[368331786,1751125847298,-460.0,0.00019178,2]
[368331787,1751125847307,-460.0,0.00019178,2]
[368331788,1751125847317,-460.0,0.00019178,2]
[368331789,1751125847326,-461.33036025,0.00019178,2]
[368331790,1751125847335,-433.4887034,0.00019178,2]
[368331791,1751125847345,-460.0,0.00019178,2]
[368331792,1751125847354,-460.0,0.00019178,2]
[368331793,1751125847363,-460.0,0.00019178,2]
[368331794,1751125847373,-500.0,0.00019178,2]
[368331795,1751125847382,-460.0,0.00019178,2]
[368331796,1751125847393,-943.01,0.00019178,2]
[368331797,1751125847402,-460.0,0.00019178,2]
[368331798,1751125847412,-460.0,0.00019178,2]
[368331799,1751125847421,-460.0,0.00019178,2]
[368331800,1751125847431,-500.0,0.00019178,2]
[368331801,1751125847440,-500.0,0.00019178,2]
[368331802,1751125847449,-460.0,0.00019178,2]
[368331803,1751125847459,-460.0,0.00019178,2]
[368331804,1751125847468,-460.0,0.00019178,2]
[368331805,1751125847478,-460.0,0.00019178,2]
[368331806,1751125847487,-406.41917849,0.00019178,2]
[368331807,1751125847497,-557.63144386,0.00019178,2]
[368331808,1751125847507,-460.0,0.00019178,2]
[368331809,1751125847516,-563.99,0.00019178,2]
[368331810,1751125847525,-460.0,0.00019178,2]
[368331811,1751125847535,-460.0,0.00019178,2]
[368331812,1751125847545,-460.0,0.00019178,2]
[368331813,1751125847554,-500.0,0.00019178,2]
[368331814,1751125847564,-460.0,0.00019178,2]
[368331815,1751125847573,-460.0,0.00019178,2]
[368331816,1751125847583,-460.0,0.00019178,2]
[368331817,1751125847592,-460.0,0.00019178,2]
[368331818,1751125847601,-182.30675157,0.00019178,2]
[368331819,1751125847611,-515.68,0.00019178,2]
[368331820,1751125847620,-460.0,0.00019178,2]
[368331821,1751125847629,-460.0,0.00019178,2]
[368331822,1751125847639,-460.0,0.00019178,2]
[368331823,1751125847648,-460.0,0.00019178,2]
[368331824,1751125847659,-460.0,0.00019178,2]
[368331825,1751125847668,-1060.92,0.00019178,2]
[368331826,1751125847678,-460.0,0.00019178,2]
[368331827,1751125847687,-460.0,0.00019178,2]
[368331828,1751125847696,-460.0,0.00019178,2]
[368331829,1751125847706,-460.0,0.00019178,2]
[368331830,1751125847716,-460.0,0.00019178,2]
[368331831,1751125847725,-460.0,0.00019178,2]
[368331832,1751125847735,-460.0,0.00019178,2]
[368331833,1751125847744,-460.0,0.00019178,2]
[368331834,1751125847754,-460.0,0.00019178,2]
[368331835,1751125847763,-460.0,0.00019178,2]
[368331836,1751125847773,-460.0,0.00019178,2]
[368331837,1751125847783,-460.0,0.00019178,2]
[368331838,1751125847792,-460.0,0.00019178,2]